Workbook

Sheet Aérat. sur le vitrage
A6: Calculer la valeur Uw de la fenêtre avec aérateur inclus
A7: Selon la réglementation PEB belge, l’aérateur fait partie de la fenêtre dans laquelle ou sur laquelle il est monté. Les aérateurs doivent donc être inclus dans le calcul de la valeur Uw de la fenêtre. Les rapporteurs PEB reçoivent souvent des notes de calcul thermique de fenêtres dans lesquelles les aérateurs ne sont pas repris. Cette feuille de calcul est une aide pour calculer ultérieurement et simplement les aérateurs dans les valeurs Uw de la fenêtre.
A9: Adresse:
A11: Référence:
A13: pièce d' epreuve:
A15: fenêtre sans aérateur:
B17: Hauteur de la fenêtre: | U17: Hw | AA17: mm | AK17: =X17/1000 -> 0 | AN17: m
B18: Largeur de la fenêtre: | U18: Bw | AA18: mm | AK18: =X18/1000 -> 0 | AN18: m
B19: Coefficient de transmission thermique de la fenêtre: | U19: Uw | AA19: W/m²K
B20: Le coefficient de transmission thermique du vitrage: | U20: Ug | AA20: W/m²K
B21: Le coefficient de transmission thermique linéaire pour les jonctions entre les profilés et les vitrages: | U21: yg | AA21: W/mK | AK21: 0.05 | AN21: W/mK | AR21: =IF(X21=0,AK21,X21) -> 0.05 | AS21: W/mK
A23: fenêtre avec aérateur:
B25: Aérateur: | AK25: =VLOOKUP(R25,'Lijst verluchtingen'!B5:D174,2,FALSE) ->  | AN25: W/m²K | AR25: =VLOOKUP(R25,'Lijst verluchtingen'!B5:D174,3,FALSE) ->  | AS25: m
AJ27: 1
B28: Longueur aérateur 1 | U28: Lr1 | AA28: mm | AJ28: =IF(X28>0,1,0) -> 0 | AK28: =X28/1000 -> 0 | AN28: m
B29: Longueur aérateur 2 | U29: Lr2 | AA29: mm | AJ29: =IF(X29>0,1,0) -> 0 | AK29: =X29/1000 -> 0 | AN29: m
B30: Longueur aérateur 3 | U30: Lr3 | AA30: mm | AJ30: =IF(X30>0,1,0) -> 0 | AK30: =X30/1000 -> 0 | AN30: m
B31: Longueur aérateur 4 | U31: Lr4 | AA31: mm | AJ31: =IF(X31>0,1,0) -> 0 | AK31: =X31/1000 -> 0 | AN31: m
B32: Longueur aérateur 5 | U32: Lr5 | AA32: mm | AJ32: =IF(X32>0,1,0) -> 0 | AK32: =X32/1000 -> 0 | AN32: m
B33: Longueur aérateur 6 | U33: Lr6 | AA33: mm | AJ33: 0 | AK33: 0 | AN33: m
T35: Ur | U35: =IF(R25=0,"= ? W/m²K",CONCATENATE("= ",VLOOKUP(R25,'Lijst verluchtingen'!B5:D174,2,FALSE)," W/m²K")) -> = ? W/m²K
AC38: =IF(R25=0,"= ? mm",VLOOKUP(R25,'Lijst verluchtingen'!B5:D174,3,FALSE)*1000) -> = ? mm | AJ38: 2
AJ39: 2
AJ40: 1
B41: =IF(X17=0,"? mm",X17) -> ? mm | J41: Uw,incl. Aérateur | S41: Lri | AJ41: 1
J42: =IF(OR(X17=0,X18=0,X19=0,X20=0,R25=0,COUNTIF(X28:Z33,">0")=0),"?",X19+((AK25-X20)*(AK28+AK29+AK30+AK31+AK32+AK33)*AR25-AR21*COUNTIF(AJ28:AJ33,1)*2*AR25)/(AK17*AK18)) -> ? | M42: W/m²K
O50: =IF(X18=0,"?",X18) -> ? | R50: mm
A53: (1) Conforme NBN EN ISO 10077-1;
A54: (2) L'outil concerné est purement informatif. Renson ne peut pas être tenu responsable d'erreurs éventuelles dans les calculs.

Sheet Aérat. sur la fenêtre
A6: Calculer la valeur Uw de la fenêtre avec aérateur inclus
A7: Selon la réglementation PEB belge, l’aérateur fait partie de la fenêtre dans laquelle ou sur laquelle il est monté. Les aérateurs doivent donc être inclus dans le calcul de la valeur Uw de la fenêtre. Les rapporteurs PEB reçoivent souvent des notes de calcul thermique de fenêtres dans lesquelles les aérateurs ne sont pas repris. Cette feuille de calcul est une aide pour calculer ultérieurement et simplement les aérateurs dans les valeurs Uw de la fenêtre.
A9: Adresse:
A11: Référence:
A13: pièce d' epreuve:
A15: fenêtre sans aérateur:
B17: Hauteur de la fenêtre: | X17: Hw = | AD17: mm | AK17: =AA17/1000 -> 0 | AN17: m | BC17: ja
B18: Largeur de la fenêtre: | X18: Bw = | AD18: mm | AK18: =AA18/1000 -> 0 | AN18: m | BC18: neen
B19: Coefficient de transmission thermique de la fenêtre: | X19: Uw = | AD19: W/m²K
A21: fenêtre avec aérateur:
B23: Hauteur du fenêtre incluant l' aérateur:
B24: Les dimensions et les valeurs U des différents profils de fenêtres et des panneaux vitrés sont connues :
B26: Aérateur: | AP26: Ur = | AQ26: =VLOOKUP(T26,'Lijst verluchtingen'!B5:D174,2,FALSE) ->  | AS26: hr = | AT26: =VLOOKUP(T26,'Lijst verluchtingen'!B5:D174,3,FALSE) ->  | AV26: Ar = | AX26: =AT26*AA18/1000000 ->  | AY26: m²
B27: Coefficient de transmission thermique de la fenêtre: | X27: Ug = | AD27: W/m²K
B28: Le coefficient de transmission thermique linéaire pour les jonctions entre les profilés et les vitrages: | X28: yg = | AD28: W/mK | AK28: 0.05 | AN28: W/mK | AR28: =IF(AA28=0,AK28,AA28) -> 0.05 | AS28: W/mK | AY28: Onbekend
B30: Profils raccourcis
B31: x | E31: [-] | H31: 1 | K31: 2 | N31: 3 | Q31: 4 | U31: 5 | X31: 6 | AA31: 7 | AD31: 8
B32: Uf,x | E32: [W/m²K]
B33: bf,x | E33: [mm]
B34: bf,x | E34: [m] | H34: =H33/1000 -> 0 | K34: =K33/1000 -> 0 | N34: =N33/1000 -> 0 | Q34: =Q33/1000 -> 0 | U34: =U33/1000 -> 0 | X34: =X33/1000 -> 0 | AA34: =AA33/1000 -> 0 | AD34: =AD33/1000 -> 0
B35: Uf,y x Af,y | E35: [W/K] | H35: =$AT$26*H34*H32 ->  | K35: =$AT$26*K34*K32 ->  | N35: =$AT$26*N34*N32 ->  | Q35: =$AT$26*Q34*Q32 ->  | U35: =$AT$26*U34*U32 ->  | X35: =$AT$26*X34*X32 ->  | AA35: =$AT$26*AA34*AA32 ->  | AD35: =$AT$26*AD34*AD32 ->  | AQ35: =SUM(H35:AF35) -> 
B37: Déduction de vitrage:
B38: y | E38: [-] | H38: 1 | K38: 2 | N38: 3 | Q38: 4 | U38: 5 | X38: 6 | AA38: 7 | AD38: 8
B39: bg,y | E39: [mm]
B40: bg,y | E40: [m] | H40: =H39/1000 -> 0 | K40: =K39/1000 -> 0 | N40: =N39/1000 -> 0 | Q40: =Q39/1000 -> 0 | U40: =U39/1000 -> 0 | X40: =X39/1000 -> 0 | AA40: =AA39/1000 -> 0 | AD40: =AD39/1000 -> 0
B41: Ug,y x Ag,y | E41: [W/mmK] | H41: =$AT$26*H40*$AA$27 ->  | K41: =$AT$26*K40*$AA$27 ->  | N41: =$AT$26*N40*$AA$27 ->  | Q41: =$AT$26*Q40*$AA$27 ->  | U41: =$AT$26*U40*$AA$27 ->  | X41: =$AT$26*X40*$AA$27 ->  | AA41: =$AT$26*AA40*$AA$27 ->  | AD41: =$AT$26*AD40*$AA$27 ->  | AQ41: =SUM(H41:AF41) ->  | AU41: aantal glasplaten: | AV41: =8-COUNTIF(H41:AF41,0) -> 8
B42: Erreur: S bf,x + Sbg,y doit être égal à Bw | N42: =CONCATENATE(IF((SUM(H33:W33)+SUM(H39:AJ39)-AA18)<0,"=> trop court: ","=> trop long: "),ABS(SUM(H33:W33)+SUM(H39:AJ39)-AA18)," mm!") -> => trop long: 0 mm! | AK42: =SUM(H33:W33)+SUM(H39:AJ39) -> 0 | AN42: m | AQ42: verschil = | AR42: =ABS(SUM(H33:W33)+SUM(H39:AJ39)-AA18) -> 0
W44: Ur | X44: =IF(T26=0,"= ? W/m²K",CONCATENATE("= ",VLOOKUP(T26,'Lijst verluchtingen'!B5:D174,2,FALSE)," W/m²K")) -> = ? W/m²K
AE46: hr = | AF46: =IF(T26=0,"? mm",VLOOKUP(T26,'Lijst verluchtingen'!B5:D174,3,FALSE)*1000) -> ? mm
K49: bg,x | X49: bf,y
A53: =IF(AA17=0,"? mm",IF(AQ23=TRUE,AA17,AA17+AF46)) -> ? mm | H53: Ug,x ; Ag,x | Y53: Uf,y ; Af,y | AC53: hr
AE54: =IF(OR(AA17=0,T26=0),"? mm",A53-AF46) -> ? mm | AU54: W/m²K
I55: Uw,incl. Aérateur | AN55: 1 | AP55: Hoogte excl. verluchting | AU55: =IF(OR(AA19=0,AA17=0,AA18=0,T26=0),"?",((AA19*AK17*AK18)+(AQ26*AK18*AT26))/((AK17*AK18)+(AK18*AT26))) -> ?
I56: =IF(AQ23<>TRUE,AU55,IF(AQ24<>TRUE,AU56,AU57)) -> ? | L56: W/m²K | AN56: 2.1 | AP56: Hoogte incl. verluchting (vereenv.) | AU56: =IF(OR(AA19=0,AA17=0,AA18=0,T26=0,AA27=0),"?",((AA19*AK17*AK18)+(AQ26-MIN(AA19,AA27))*(AT26*AK18))/(AK17*AK18)) -> ?
AN57: 2.2 | AP57: Hoogte incl. verluchting (vereenv.) | AU57: =IF(OR(AA19=0,AA17=0,AA18=0,T26=0,AA27=0,AR42<>0),"?",(AA19*AK17*AK18+AQ26*AK18*AT26-AQ35-AQ41-2*AV41*AT26*AR28)/(AK17*AK18)) -> ?
N61: =IF(AA18=0,"?",AA18) -> ? | Q61: mm
A63: (1) Conforme NBN EN ISO 10077-1;
A64: (2) L'outil concerné est purement informatif. Renson ne peut pas être tenu responsable d'erreurs éventuelles dans les calculs.
A65: (3) Simplification : comme valeur sûre, la surface de l’aérateur remplace une partie de la surface de la ‘fenêtre sans aérateur’ dont la valeur U = min (Ug et Uw)

Sheet Aérat. sur le vitrage (exemple)
A6: Calculer la valeur Uw de la fenêtre avec aérateur inclus
A7: Selon la réglementation PEB belge, l’aérateur fait partie de la fenêtre dans laquelle ou sur laquelle il est monté. Les aérateurs doivent donc être inclus dans le calcul de la valeur Uw de la fenêtre. Les rapporteurs PEB reçoivent souvent des notes de calcul thermique de fenêtres dans lesquelles les aérateurs ne sont pas repris. Cette feuille de calcul est une aide pour calculer ultérieurement et simplement les aérateurs dans les valeurs Uw de la fenêtre.
A9: Adresse: | I9: adg
A11: Référence: | I11: Raam 030
A13: pièce d' epreuve: | I13: note de calcule menuisier
A15: fenêtre sans aérateur:
B17: Hauteur de la fenêtre: | U17: Hw | X17: 1480 | AA17: mm | AK17: =X17/1000 -> 1.48 | AN17: m
B18: Largeur de la fenêtre: | U18: Bw | X18: 1230 | AA18: mm | AK18: =X18/1000 -> 1.23 | AN18: m
B19: Coefficient de transmission thermique de la fenêtre: | U19: Uw | X19: 1.41 | AA19: W/m²K
B20: Le coefficient de transmission thermique du vitrage: | U20: Ug | X20: 1.1 | AA20: W/m²K
B21: Le coefficient de transmission thermique linéaire pour les jonctions entre les profilés et les vitrages: | U21: yg | AA21: W/mK | AK21: 0.05 | AN21: W/mK | AR21: =IF(X21=0,AK21,X21) -> 0.05 | AS21: W/mK
A23: fenêtre avec aérateur:
B25: Aérateur: | R25: AR75 Small | AK25: =VLOOKUP(R25,'Lijst verluchtingen'!B5:D174,2,FALSE) -> 3 | AN25: W/m²K | AR25: =VLOOKUP(R25,'Lijst verluchtingen'!B5:D174,3,FALSE) -> 0.075 | AS25: m
AJ27: 1
B28: Longueur aérateur 1 | U28: Lr1 | X28: 1130 | AA28: mm | AJ28: =IF(X28>0,1,0) -> 1 | AK28: =X28/1000 -> 1.13 | AN28: m
B29: Longueur aérateur 2 | U29: Lr2 | AA29: mm | AJ29: =IF(X29>0,1,0) -> 0 | AK29: =X29/1000 -> 0 | AN29: m
B30: Longueur aérateur 3 | U30: Lr3 | AA30: mm | AJ30: =IF(X30>0,1,0) -> 0 | AK30: =X30/1000 -> 0 | AN30: m
B31: Longueur aérateur 4 | U31: Lr4 | AA31: mm | AJ31: =IF(X31>0,1,0) -> 0 | AK31: =X31/1000 -> 0 | AN31: m
T33: Ur | U33: =IF(R25=0,"= ? W/m²K",CONCATENATE("= ",VLOOKUP(R25,'Lijst verluchtingen'!B5:D174,2,FALSE)," W/m²K")) -> = 3 W/m²K
AC36: =IF(R25=0,"= ? mm",VLOOKUP(R25,'Lijst verluchtingen'!B5:D174,3,FALSE)*1000) -> 75 | AJ36: 2
AJ37: 2
S38: Lri | AJ38: 1
B39: =IF(X17=0,"? mm",X17) -> 1480 | J39: Uw,incl. Aérateur | AJ39: 1
J40: =IF(OR(X17=0,X18=0,X19=0,X20=0,R25=0,X28=0),"?",X19+((AK25-X20)*(AK28+AK29+AK30+AK31)*AR25-AR21*COUNTIF(AJ28:AJ31,1)*2*AR25)/(AK17*AK18)) -> 1.49433586 | M40: W/m²K
O48: =IF(X18=0,"?",X18) -> 1230 | R48: mm
A51: (1) Conforme NBN EN ISO 10077-1;
A52: (2) L'outil concerné est purement informatif. Renson ne peut pas être tenu responsable d'erreurs éventuelles dans les calculs.

Sheet Aérat. sur la fenêtre (exemple)
A6: Calculer la valeur Uw de la fenêtre avec aérateur inclus | BL6: POSSIBILITÉ 1 exemple rempli
A7: Selon la réglementation PEB belge, l’aérateur fait partie de la fenêtre dans laquelle ou sur laquelle il est monté. Les aérateurs doivent donc être inclus dans le calcul de la valeur Uw de la fenêtre. Les rapporteurs PEB reçoivent souvent des notes de calcul thermique de fenêtres dans lesquelles les aérateurs ne sont pas repris. Cette feuille de calcul est une aide pour calculer ultérieurement et simplement les aérateurs dans les valeurs Uw de la fenêtre.
A9: Adresse: | I9: adg
A11: Référence: | I11: Raam 030
A13: pièce d' epreuve: | I13: note de calcul menuisier
A15: fenêtre sans aérateur:
B17: Hauteur de la fenêtre: | X17: Hw = | AA17: 1480 | AD17: mm | AK17: =AA17/1000 -> 1.48 | AN17: m | BC17: ja
B18: Largeur de la fenêtre: | X18: Bw = | AA18: 1230 | AD18: mm | AK18: =AA18/1000 -> 1.23 | AN18: m | BC18: neen
B19: Coefficient de transmission thermique de la fenêtre: | X19: Uw = | AA19: 1.41 | AD19: W/m²K
A21: fenêtre avec aérateur:
B23: Hauteur du fenêtre incluant l' aérateur: | AQ23: FALSE
B24: Les dimensions et les valeurs U des différents profils de fenêtres et des panneaux vitrés sont connues :
B26: Aérateur: | T26: Invisivent AIR Light | AP26: Ur = | AQ26: =VLOOKUP(T26,'Lijst verluchtingen'!B5:D174,2,FALSE) -> 2 | AS26: hr = | AT26: =VLOOKUP(T26,'Lijst verluchtingen'!B5:D174,3,FALSE) -> 0.065 | AV26: Ar = | AX26: =AT26*AA18/1000000 -> 7.995e-05 | AY26: m²
B27: Coefficient de transmission thermique de la fenêtre: | X27: Ug = | AA27: 1.1 | AD27: W/m²K
B28: Le coefficient de transmission thermique linéaire pour les jonctions entre les profilés et les vitrages: | X28: yg = | AD28: W/mK | AK28: 0.05 | AN28: W/mK | AR28: =IF(AA28=0,AK28,AA28) -> 0.05 | AS28: W/mK | AY28: Onbekend
B30: Profils raccourcis
B31: x | E31: [-] | H31: 1 | K31: 2 | N31: 3 | Q31: 4 | U31: 5 | X31: 6 | AA31: 7 | AD31: 8
B32: Uf,x | E32: [W/m²K]
B33: bf,x | E33: [mm]
B34: bf,x | E34: [m] | H34: =H33/1000 -> 0 | K34: =K33/1000 -> 0 | N34: =N33/1000 -> 0 | Q34: =Q33/1000 -> 0 | U34: =U33/1000 -> 0 | X34: =X33/1000 -> 0 | AA34: =AA33/1000 -> 0 | AD34: =AD33/1000 -> 0
B35: Uf,y x Af,y | E35: [W/K] | H35: =$AT$26*H34*H32 -> 0 | K35: =$AT$26*K34*K32 -> 0 | N35: =$AT$26*N34*N32 -> 0 | Q35: =$AT$26*Q34*Q32 -> 0 | U35: =$AT$26*U34*U32 -> 0 | X35: =$AT$26*X34*X32 -> 0 | AA35: =$AT$26*AA34*AA32 -> 0 | AD35: =$AT$26*AD34*AD32 -> 0 | AQ35: =SUM(H35:AF35) -> 0
B37: Déduction de vitrage:
B38: y | E38: [-] | H38: 1 | K38: 2 | N38: 3 | Q38: 4 | U38: 5 | X38: 6 | AA38: 7 | AD38: 8
B39: bg,y | E39: [mm]
B40: bg,y | E40: [m] | H40: =H39/1000 -> 0 | K40: =K39/1000 -> 0 | N40: =N39/1000 -> 0 | Q40: =Q39/1000 -> 0 | U40: =U39/1000 -> 0 | X40: =X39/1000 -> 0 | AA40: =AA39/1000 -> 0 | AD40: =AD39/1000 -> 0
B41: Ug,y x Ag,y | E41: [W/mmK] | H41: =$AT$26*H40*$AA$27 -> 0 | K41: =$AT$26*K40*$AA$27 -> 0 | N41: =$AT$26*N40*$AA$27 -> 0 | Q41: =$AT$26*Q40*$AA$27 -> 0 | U41: =$AT$26*U40*$AA$27 -> 0 | X41: =$AT$26*X40*$AA$27 -> 0 | AA41: =$AT$26*AA40*$AA$27 -> 0 | AD41: =$AT$26*AD40*$AA$27 -> 0 | AQ41: =SUM(H41:AF41) -> 0 | AU41: aantal glasplaten: | AV41: =8-COUNTIF(H41:AF41,0) -> 0
B42: Erreur: S bf,x + Sbg,y doit être égal à Bw | N42: =CONCATENATE(IF((SUM(H33:W33)+SUM(H39:AJ39)-AA18)<0,"=> trop court: ","=> trop long: "),ABS(SUM(H33:W33)+SUM(H39:AJ39)-AA18)," mm!") -> => trop court: 1230 mm! | AK42: =SUM(H33:W33)+SUM(H39:AJ39) -> 0 | AN42: m | AQ42: verschil = | AR42: =ABS(SUM(H33:W33)+SUM(H39:AJ39)-AA18) -> 1230
W44: Ur | X44: =IF(T26=0,"= ? W/m²K",CONCATENATE("= ",VLOOKUP(T26,'Lijst verluchtingen'!B5:D174,2,FALSE)," W/m²K")) -> = 2 W/m²K
AE46: hr = | AF46: =IF(T26=0,"? mm",VLOOKUP(T26,'Lijst verluchtingen'!B5:D174,3,FALSE)*1000) -> 65
K49: bg,x | X49: bf,y
A53: =IF(AA17=0,"? mm",IF(AQ23=TRUE,AA17,AA17+AF46)) -> 1545 | H53: Ug,x ; Ag,x | Y53: Uf,y ; Af,y | AC53: hr
AE54: =IF(OR(AA17=0,T26=0),"? mm",A53-AF46) -> 1480 | AU54: W/m²K
I55: Uw,incl. Aérateur | AN55: 1 | AP55: Hoogte excl. verluchting | AU55: =IF(OR(AA19=0,AA17=0,AA18=0,T26=0),"?",((AA19*AK17*AK18)+(AQ26*AK18*AT26))/((AK17*AK18)+(AK18*AT26))) -> 1.434822006
I56: =IF(AQ23<>TRUE,AU55,IF(AQ24<>TRUE,AU56,AU57)) -> 1.434822006 | L56: W/m²K | AN56: 2.1 | AP56: Hoogte incl. verluchting (vereenv.) | AU56: =IF(OR(AA19=0,AA17=0,AA18=0,T26=0,AA27=0),"?",((AA19*AK17*AK18)+(AQ26-MIN(AA19,AA27))*(AT26*AK18))/(AK17*AK18)) -> 1.449527027
AN57: 2.2 | AP57: Hoogte incl. verluchting (vereenv.) | AU57: =IF(OR(AA19=0,AA17=0,AA18=0,T26=0,AA27=0,AR42<>0),"?",(AA19*AK17*AK18+AQ26*AK18*AT26-AQ35-AQ41-2*AV41*AT26*AR28)/(AK17*AK18)) -> ?
N61: =IF(AA18=0,"?",AA18) -> 1230 | Q61: mm
A63: (1) NBN EN ISO 10077-1;
A64: (2) L'outil concerné est purement informatif. Renson ne peut pas être tenu responsable d'erreurs éventuelles dans les calculs.
A65: (3) Simplification : comme valeur sûre, la surface de l’aérateur remplace une partie de la surface de la ‘fenêtre sans aérateur’ dont la valeur U = min (Ug et Uw)
A71: Calculer la valeur Uw de la fenêtre avec aérateur inclus | BL71: POSSIBILITÉ 2 exemple rempli
A72: Selon la réglementation PEB belge, l’aérateur fait partie de la fenêtre dans laquelle ou sur laquelle il est monté. Les aérateurs doivent donc être inclus dans le calcul de la valeur Uw de la fenêtre. Les rapporteurs PEB reçoivent souvent des notes de calcul thermique de fenêtres dans lesquelles les aérateurs ne sont pas repris. Cette feuille de calcul est une aide pour calculer ultérieurement et simplement les aérateurs dans les valeurs Uw de la fenêtre.
A74: Adresse: | I74: adg
A76: Référence: | I76: Raam 030
A78: pièce d' epreuve: | I78: note de calcul menuisier
A80: fenêtre sans aérateur:
B82: Hauteur de la fenêtre: | X82: Hw = | AA82: 1480 | AD82: mm
B83: Largeur de la fenêtre: | X83: Bw = | AA83: 1230 | AD83: mm
B84: Coefficient de transmission thermique de la fenêtre: | X84: Uw = | AA84: 1.41 | AD84: W/m²K
A86: fenêtre avec aérateur:
B88: Hauteur du fenêtre incluant l' aérateur: | AQ88: TRUE
B89: Les dimensions et les valeurs U des différents profils de fenêtres et des panneaux vitrés sont connues :
B91: Aérateur: | T91: Invisivent AIR Light
B92: Coefficient de transmission thermique de la fenêtre: | X92: Ug = | AA92: 1.1 | AD92: W/m²K
B95: Profils raccourcis
B96: x | E96: [-] | H96: 1 | K96: 2 | N96: 3 | Q96: 4 | U96: 5 | X96: 6 | AA96: 7 | AD96: 8
B97: Uf,x | E97: [W/m²K]
B98: bf,x | E98: [mm]
B99: bf,x | E99: [m] | H99: =H98/1000 -> 0 | K99: =K98/1000 -> 0 | N99: =N98/1000 -> 0 | Q99: =Q98/1000 -> 0 | U99: =U98/1000 -> 0 | X99: =X98/1000 -> 0 | AA99: =AA98/1000 -> 0 | AD99: =AD98/1000 -> 0
B100: Uf,y x Af,y | E100: [W/K] | H100: =$AT$26*H99*H97 -> 0 | K100: =$AT$26*K99*K97 -> 0 | N100: =$AT$26*N99*N97 -> 0 | Q100: =$AT$26*Q99*Q97 -> 0 | U100: =$AT$26*U99*U97 -> 0 | X100: =$AT$26*X99*X97 -> 0 | AA100: =$AT$26*AA99*AA97 -> 0 | AD100: =$AT$26*AD99*AD97 -> 0
B102: Déduction de vitrage:
B103: y | E103: [-] | H103: 1 | K103: 2 | N103: 3 | Q103: 4 | U103: 5 | X103: 6 | AA103: 7 | AD103: 8
B104: bg,y | E104: [mm]
B105: bg,y | E105: [m] | H105: =H104/1000 -> 0 | K105: =K104/1000 -> 0 | N105: =N104/1000 -> 0 | Q105: =Q104/1000 -> 0 | U105: =U104/1000 -> 0 | X105: =X104/1000 -> 0 | AA105: =AA104/1000 -> 0 | AD105: =AD104/1000 -> 0
B106: Ug,y x Ag,y | E106: [W/mmK] | H106: =$AT$26*H105*$AA$27 -> 0 | K106: =$AT$26*K105*$AA$27 -> 0 | N106: =$AT$26*N105*$AA$27 -> 0 | Q106: =$AT$26*Q105*$AA$27 -> 0 | U106: =$AT$26*U105*$AA$27 -> 0 | X106: =$AT$26*X105*$AA$27 -> 0 | AA106: =$AT$26*AA105*$AA$27 -> 0 | AD106: =$AT$26*AD105*$AA$27 -> 0
B107: Erreur: S bf,x + Sbg,y doit être égal à Bw | N107: =CONCATENATE(IF((SUM(H98:W98)+SUM(H104:AJ104)-AA83)<0,"=> trop court: ","=> trop long: "),ABS(SUM(H98:W98)+SUM(H104:AJ104)-AA83)," mm!") -> => trop court: 1230 mm!
W109: Ur | X109: = 2 W/m²K
AE111: hr = | AF111: 65
K114: bg,x | X114: bf,y
A118: =IF(AA82=0,"? mm",IF(AQ88=TRUE,AA82,AA82+AF111)) -> 1480 | H118: Ug,x ; Ag,x | Y118: Uf,y ; Af,y | AC118: hr
AE119: 1415
I120: Uw,incl. Aérateur
I121: 1.45 | L121: W/m²K
N126: =IF(AA83=0,"?",AA83) -> 1230 | Q126: mm
A128: (1) Conforme NBN EN ISO 10077-1;
A129: (2) L'outil concerné est purement informatif. Renson ne peut pas être tenu responsable d'erreurs éventuelles dans les calculs.
A130: (3) Simplification : comme valeur sûre, la surface de l’aérateur remplace une partie de la surface de la ‘fenêtre sans aérateur’ dont la valeur U = min (Ug et Uw)
A136: Calculer la valeur Uw de la fenêtre avec aérateur inclus | BL136: POSSIBILITÉ 3 exemple rempli
A137: Selon la réglementation PEB belge, l’aérateur fait partie de la fenêtre dans laquelle ou sur laquelle il est monté. Les aérateurs doivent donc être inclus dans le calcul de la valeur Uw de la fenêtre. Les rapporteurs PEB reçoivent souvent des notes de calcul thermique de fenêtres dans lesquelles les aérateurs ne sont pas repris. Cette feuille de calcul est une aide pour calculer ultérieurement et simplement les aérateurs dans les valeurs Uw de la fenêtre.
A139: Adresse: | I139: adg
A141: Référence: | I141: Raam 030
A143: pièce d' epreuve: | I143: note de calcul menuisier
A145: fenêtre sans aérateur:
B147: Hauteur de la fenêtre: | X147: Hw = | AA147: 1480 | AD147: mm
B148: Largeur de la fenêtre: | X148: Bw = | AA148: 1230 | AD148: mm
B149: Coefficient de transmission thermique de la fenêtre: | X149: Uw = | AA149: 1.41 | AD149: W/m²K
A151: fenêtre avec aérateur:
B153: Hauteur du fenêtre incluant l' aérateur: | AQ153: TRUE
B154: Les dimensions et les valeurs U des différents profils de fenêtres et des panneaux vitrés sont connues : | AQ154: TRUE
B156: Aérateur: | T156: Invisivent AIR Light
B157: Coefficient de transmission thermique de la fenêtre: | X157: Ug = | AA157: 1.1 | AD157: W/m²K
B158: Le coefficient de transmission thermique linéaire pour les jonctions entre les profilés et les vitrages: | X158: yg = | AD158: W/mK
B160: Profils raccourcis
B161: x | E161: [-] | H161: 1 | K161: 2 | N161: 3 | Q161: 4 | U161: 5 | X161: 6 | AA161: 7 | AD161: 8
B162: Uf,x | E162: [W/m²K] | H162: 1.47 | K162: 1.47
B163: bf,x | E163: [mm] | H163: 150 | K163: 150
B164: bf,x | E164: [m] | H164: =H163/1000 -> 0.15 | K164: =K163/1000 -> 0.15 | N164: =N163/1000 -> 0 | Q164: =Q163/1000 -> 0 | U164: =U163/1000 -> 0 | X164: =X163/1000 -> 0 | AA164: =AA163/1000 -> 0 | AD164: =AD163/1000 -> 0
B165: Uf,y x Af,y | E165: [W/K] | H165: =$AT$26*H164*H162 -> 0.0143325 | K165: =$AT$26*K164*K162 -> 0.0143325 | N165: =$AT$26*N164*N162 -> 0 | Q165: =$AT$26*Q164*Q162 -> 0 | U165: =$AT$26*U164*U162 -> 0 | X165: =$AT$26*X164*X162 -> 0 | AA165: =$AT$26*AA164*AA162 -> 0 | AD165: =$AT$26*AD164*AD162 -> 0
B167: Déduction de vitrage:
B168: y | E168: [-] | H168: 1 | K168: 2 | N168: 3 | Q168: 4 | U168: 5 | X168: 6 | AA168: 7 | AD168: 8
B169: bg,y | E169: [mm] | H169: 930
B170: bg,y | E170: [m] | H170: =H169/1000 -> 0.93 | K170: =K169/1000 -> 0 | N170: =N169/1000 -> 0 | Q170: =Q169/1000 -> 0 | U170: =U169/1000 -> 0 | X170: =X169/1000 -> 0 | AA170: =AA169/1000 -> 0 | AD170: =AD169/1000 -> 0
B171: Ug,y x Ag,y | E171: [W/mmK] | H171: =$AT$26*H170*$AA$27 -> 0.066495 | K171: =$AT$26*K170*$AA$27 -> 0 | N171: =$AT$26*N170*$AA$27 -> 0 | Q171: =$AT$26*Q170*$AA$27 -> 0 | U171: =$AT$26*U170*$AA$27 -> 0 | X171: =$AT$26*X170*$AA$27 -> 0 | AA171: =$AT$26*AA170*$AA$27 -> 0 | AD171: =$AT$26*AD170*$AA$27 -> 0
W174: Ur | X174: = 2 W/m²K
AE176: hr = | AF176: 65
K179: bg,x | X179: bf,y
A183: 1480 | H183: Ug,x ; Ag,x | Y183: Uf,y ; Af,y | AC183: hr
AE184: 1415
I185: Uw,incl. Aérateur
I186: 1.44 | L186: W/m²K
N191: =IF(AA148=0,"?",AA148) -> 1230 | Q191: mm
A193: (1) Conforme NBN EN ISO 10077-1;
A194: (2) L'outil concerné est purement informatif. Renson ne peut pas être tenu responsable d'erreurs éventuelles dans les calculs.

Sheet Lijst verluchtingen (hidden)
C1: U-waarde | D1: Oppervlakte
C4: [W/m²K] | D4: [m²/m]
A5: 1 | B5: Invisivent AIR Light | C5: 2 | D5: 0.065
A6: 2 | B6: Invisivent AIR Basic | C6: 1.8 | D6: 0.065
A7: 3 | B7: Invisivent AIR High | C7: 1.8 | D7: 0.065
A8: 4 | B8: Invisivent COMFORT Basic | C8: 1.8 | D8: 0.065
A9: 5 | B9: Invisivent COMFORT High | C9: 1.8 | D9: 0.065
A10: 6 | B10: Invisivent COMFORT Ultra | C10: 1.7 | D10: 0.065
A11: 7 | B11: Invisivent EVO | C11: 2.8 | D11: 0.062
A12: 8 | B12: Invisivent EVO HF | C12: 2.8 | D12: 0.062
A13: 9 | B13: Invisivent EVO AK Basic | C13: 2 | D13: 0.062
A14: 10 | B14: Invisivent EVO AK High | C14: 2.2 | D14: 0.062
A15: 11 | B15: Invisivent EVO HR | C15: 2 | D15: 0.062
A16: 12 | B16: Invisivent UT | C16: 1.8 | D16: 0.065
A17: 13 | B17: Fixvent Mono AK EVO Small | C17: 1.47 | D17: 0.132
A18: 14 | B18: Fixvent Mono AK EVO Medium | C18: 0.98 | D18: 0.132
A19: 15 | B19: Fixvent Mono AK EVO Large | C19: 0.86 | D19: 0.132
A20: 16 | B20: Fixvent Mono AK EVO Xlarge | C20: 0.77 | D20: 0.132
A21: 17 | B21: Fixvent Mono AK EVO XXlarge | C21: 0.72 | D21: 0.132
A22: 18 | B22: Screenvent Small | C22: 4.4 | D22: 0.12
A23: 19 | B23: Screenvent Medium | C23: 4.1 | D23: 0.12
A24: 20 | B24: Screenvent Large | C24: 4 | D24: 0.12
A25: 21 | B25: Screenvent Mistral AK Small | C25: 4.4 | D25: 0.12
A26: 22 | B26: Screenvent Mistral AK Medium | C26: 4.1 | D26: 0.12
A27: 23 | B27: Screenvent Mistral AK Large | C27: 4 | D27: 0.12
A36: 24 | B36: AR75 Small | C36: 3 | D36: 0.075
A37: 25 | B37: AR75 Medium | C37: 3 | D37: 0.075
A38: 26 | B38: AR75 Large | C38: 3 | D38: 0.075
A39: 27 | B39: AR75 XLarge | C39: 3 | D39: 0.075
A40: 28 | B40: AR90 | C40: 3.91 | D40: 0.09
A41: 29 | B41: AR60 | C41: 4.5 | D41: 0.06
A42: 30 | B42: THM90EVO | C42: 3.79 | D42: 0.09
A43: 31 | B43: THM90PBEVO | C43: 3.79 | D43: 0.09
A44: 32 | B44: THM90TREVO | C44: 3.79 | D44: 0.09
A45: 33 | B45: THK60 | C45: 4.5 | D45: 0.06
A46: 34 | B46: THK90 | C46: 3.91 | D46: 0.09
A47: 35 | B47: Sonovent Small 10 | C47: 4.5 | D47: 0.105
A48: 36 | B48: Sonovent Small 15 | C48: 4.5 | D48: 0.105
A49: 37 | B49: Sonovent Small 20 | C49: 4.5 | D49: 0.105
A50: 38 | B50: Sonovent Small 25 | C50: 4.5 | D50: 0.105
A51: 39 | B51: Sonovent Medium 10 | C51: 4.5 | D51: 0.105
A52: 40 | B52: Sonovent Medium 15 | C52: 4.5 | D52: 0.105
A53: 41 | B53: Sonovent Medium 20 | C53: 4.5 | D53: 0.105
A54: 42 | B54: Sonovent Medium 25 | C54: 4.5 | D54: 0.105
A55: 43 | B55: Sonovent Large 10 | C55: 4.5 | D55: 0.105
A56: 44 | B56: Sonovent Large 15 | C56: 4.5 | D56: 0.105
A57: 45 | B57: Sonovent Large 20 | C57: 4.5 | D57: 0.105
A58: 46 | B58: Sonovent Large 25 | C58: 4.5 | D58: 0.105
A59: 47 | B59: Sonovent XLarge 10 | C59: 4.5 | D59: 0.105
A60: 48 | B60: Sonovent XLarge 15 | C60: 4.5 | D60: 0.105
A61: 49 | B61: Sonovent XLarge 20 | C61: 4.5 | D61: 0.105
A62: 50 | B62: Sonovent XLarge 25 | C62: 4.5 | D62: 0.105
A63: 51 | B63: Sonovent Compact 10 | C63: 6 | D63: 0.078
A64: 52 | B64: Sonovent Compact 13 | C64: 6 | D64: 0.078
A65: 53 | B65: Sonovent Compact 15 | C65: 6 | D65: 0.078
A66: 54 | B66: Sonovent Compact 15 | C66: 6 | D66: 0.078
A67: 55
A68: 56
A69: 57
A70: 58
A71: 59
A72: 60

Sheet Taal (hidden)
B1: =#REF! ->  | C1: Nederlands | D1: Français | E1: English
A2: 2 | B2: =HLOOKUP(B$1,$C$1:$G$31,A2,FALSE) ->  | C2: Uw-waarde raam berekenen inclusief verluchting | D2: Calculer la valeur Uw du châssis avec aérateur inclus | E2: Calculation of the Uw-value of a window, including window ventilator
A3: 3 | B3: =HLOOKUP(B$1,$C$1:$G$31,A3,FALSE) ->  | C3: Referentie: | D3: Référence : | E3: Reference:
A4: 4 | C4: Raamverluchtingen dienen in de globale Uw-waarde van het raam meegerekend te worden. Soms gebeurt het dat de schrijnwerker bij de berekening van Uw geen rekening houdt met de impact van het rooster omdat de gebruikte software dit niet ondersteunt. Dit rekenblad is dan ook een hulp om de invloed van de verluchting op de globale Uw-waarde van het raam in rekening te brengen. Gezien elk raam anders is en Renson geen kennis heeft van de eigenschappen van de beschouwde ramen, werden er een aantal vereenvoudigingen in de berekening doorgevoerd waardoor het resultaat mogelijk iets kan afwijken van de gedetailleerde berekening. | D4: Les aérateurs doivent être calculés dans la valeur Uw globale du châssis. Parfois il arrive que le menuisier lors du calcul de la valeur Uw ne tient pas compte de l'impact de l'aérateur parce que le logiciel utilisé ne le prévoit pas. Cette feuille de calcul est une aide pour prendre en compte l'influence de l'aérateur sur la valeur Uw globale du châssis. Etant donné que chaque châssis est différent et que Renson ne connaît pas les caractéristiques des châssis pris en compte, on a effectué des simplifications dans le calcul ce qui peut faire différer le résultat légèrement du calcul détaillé. | E4: Window ventilators should be taken into account in the calculation of the total Uw-value of a window. It might happen that the window constructor doesn’t take into account the impact of the window ventilator when calculating the Uw-value, because he doesn’t dispose of the suitable software. Therefore, this calculation sheet is a tool to help you calculate the influence of the window ventilator on the global Uw-value of the window. Since every window is different and RENSON has no knowledge of the windows concerned, a few simplifications have been implemented in this calculation, which may cause a slight deviation in the result compared to a detailed calculation.
A5: 5 | C5: Ontvangen gegevens van de schrijnwerker: | D5: Données reçues du menuisier : | E5: Received details from the window constructor:
A6: 6 | C6: Raambreedte = | D6: Largeur châssis = | E6: Total width of the window =
A7: 7 | C7: Raamhoogte = | D7: Hauteur châssis = | E7: Total height of the window =
A8: 8 | C8: Uw-waarde van het raam exclusief de raamverluchting: | D8: Valeur Uw du châssis sans aérateur : | E8: Uw-value of the window EXCL. the window ventilator =
A9: 9 | C9: Toegepaste raamverluchting: | D9: Aérateur utilisé : | E9: Applied window ventilator:
A10: 10 | C10: Ur = | D10: Ua = | E10: Uv =
A11: 11 | C11: Hoogte rooster = | D11: Hauteur aérateur = | E11: Height of the window ventilator =
A12: 12 | C12: Lengte rooster (lr) = | D12: Longueur aérateur (lr) = | E12: Length of the window ventilator (lv) =
A13: 13 | C13: Gegeven Ug-waarde van het glas: | D13: Valeur Ug donnée du vitrage : | E13: Given Ug-value off the glass:
A14: 14 | C14: Uw-waarde raam inclusief de verluchting: | D14: Valeur Uw du châssis, aérateur inclus : | E14: Uw-value of the window INCL. window ventilator:
A15: 15 | C15: Raambreedte = | D15: Largeur châssis = | E15: Total width of the window =
A16: 16 | C16: (1) De betreffende tool is louter informatief. Renson kan dan ook niet aansprakelijk worden gesteld voor eventuele onjuistheden in de berekeningen. | D16: (1) L'outil concerné est purement informatif. Renson ne peut pas être tenu responsable d'erreurs éventuelles dans les calculs. | E16: 1)This tool is only informative. RENSON can not be held responsible for possible errors in the calculations.
A17: 17 | C17: lr | D17: la | E17: lv
A18: 18
A19: 19
A20: 20
A21: 21
A22: 22
A23: 23
A24: 24
A25: 25
A26: 26
A27: 27
A28: 28
A29: 29
A30: 30
